bitfinex/quotes_BTCUSD_20251214
["timestamp","ask_amount","ask_price","bid_price","bid_amount"]
[1765730539837,0.26344252,89044.0,89043.0,0.001]
[1765730540230,0.01123355,89019.0,89015.0,0.01123406]
[1765730540434,0.01123355,89019.0,89016.0,0.01123393]
[1765730540869,0.01123343,89020.0,89016.0,0.01123393]
[1765730541249,0.23590126,89021.0,89016.0,0.01123393]
[1765730541250,0.0112333,89021.0,89018.0,0.01123368]
[1765730541453,5.609e-05,89021.0,89018.0,0.23590693]
[1765730541856,0.003,89019.0,89018.0,0.23590693]
[1765730542986,0.01328939,89021.0,89018.0,0.23590693]
[1765730543163,0.01128939,89021.0,89018.0,0.23590693]
[1765730543363,0.01328939,89021.0,89018.0,0.23690693]
[1765730543603,0.001,89019.0,89018.0,0.01123368]
[1765730544017,0.002,89019.0,89018.0,0.001]
[1765730544286,0.23591721,89015.0,89011.0,0.01123456]
[1765730544489,0.01123406,89015.0,89012.0,0.01123444]
[1765730545110,0.01123406,89015.0,89011.0,0.01123456]
[1765730545313,0.0112338,89017.0,89012.0,0.23592083]
[1765730545567,0.23591263,89016.0,89011.0,0.23592528]
[1765730545706,0.01123355,89019.0,89015.0,0.01123406]
[1765730546092,0.01223355,89019.0,89018.0,0.001]
[1765730546593,0.01123355,89019.0,89016.0,0.01123393]
[1765730546843,0.01223355,89019.0,89016.0,0.01123393]
[1765730547042,0.01123355,89019.0,89016.0,0.01123393]
[1765730547253,0.01123368,89018.0,89015.0,0.01123406]
[1765730547451,0.01223355,89019.0,89018.0,0.001]
[1765730547652,0.01123355,89019.0,89016.0,0.01123393]
[1765730548034,0.01223355,89019.0,89016.0,0.01223393]
[1765730548352,0.01323355,89019.0,89016.0,0.01223393]
[1765730548772,0.23690678,89019.0,89016.0,0.001]
[1765730548973,0.25992678,89019.0,89016.0,0.001]
[1765730549270,0.01123431,89013.0,89010.0,0.01123469]
[1765730549472,0.23591876,89014.0,89010.0,0.01123469]
[1765730549473,0.01123418,89014.0,89011.0,0.01123456]
[1765730549617,0.0112338,89017.0,89012.0,0.23592149]
[1765730549818,0.01123393,89016.0,89013.0,0.01123431]
[1765730550919,0.0112338,89017.0,89013.0,0.01123431]
[1765730551364,0.0112338,89017.0,89009.0,0.01123481]
[1765730551365,0.01123481,89009.0,89003.0,0.01123557]
[1765730551581,0.01123507,89007.0,89001.0,0.01123582]
[1765730551886,0.01123481,89009.0,89006.0,0.2359388]
[1765730552044,0.01123444,89012.0,89007.0,0.01123507]
[1765730552451,0.01123444,89012.0,89008.0,0.01123494]
[1765730552652,0.01123444,89012.0,89009.0,0.01123481]
[1765730552863,0.2246888,89012.0,89008.0,0.01123494]
[1765730553056,0.23592856,89010.0,89007.0,0.01123507]
[1765730553266,0.01123469,89010.0,89007.0,0.01323507]
[1765730553440,0.01123469,89010.0,89006.0,0.001]
[1765730553876,0.01123469,89010.0,89009.0,0.001]
[1765730554136,0.01123481,89009.0,89006.0,0.01223519]
[1765730554310,0.01123481,89009.0,89006.0,0.01123519]
[1765730554489,0.01123481,89009.0,89007.0,0.001]
[1765730555635,0.01223481,89009.0,89007.0,0.001]
[1765730556048,0.01323469,89010.0,89007.0,0.001]
[1765730556240,0.23592538,89012.0,89008.0,0.01123494]
[1765730556469,0.002,89009.0,89008.0,0.01123494]
[1765730556997,0.002,89009.0,89007.0,0.01123507]
[1765730557306,0.00184793,89009.0,89007.0,0.01223507]
[1765730557506,0.01123469,89010.0,89007.0,0.01123507]
[1765730557711,0.002,89009.0,89008.0,0.001]
[1765730557911,0.002,89009.0,89008.0,0.00096]
[1765730558090,0.01323469,89010.0,89007.0,0.01123507]
[1765730558528,0.01123469,89010.0,89007.0,0.01123507]
[1765730558755,0.01123456,89011.0,89007.0,0.23593517]
[1765730558968,0.002,89009.0,89008.0,0.01123494]
[1765730559231,0.002,89009.0,89004.0,0.01123545]
[1765730559232,0.2520099,89008.0,89002.0,0.22471184]
[1765730559389,0.02731,89008.0,89002.0,0.0112357]
[1765730559590,0.01169,89008.0,89002.0,0.0112357]
[1765730559792,0.01169,89010.0,89002.0,0.0112357]
[1765730559952,0.01123494,89008.0,89007.0,0.001]
[1765730560487,0.01123494,89008.0,89005.0,0.01123532]
[1765730561096,0.01223494,89008.0,89005.0,0.01123532]
[1765730561292,0.001,89008.0,89006.0,0.22470395]
[1765730561463,0.002,89010.0,89009.0,0.22469637]
[1765730561861,0.01123444,89012.0,89009.0,0.23593118]
[1765730562684,0.01123431,89013.0,89010.0,0.01123469]
[1765730563007,0.01123456,89011.0,89008.0,0.01123494]
[1765730563626,0.23592768,89011.0,89007.0,0.01123507]
[1765730564004,0.23592768,89011.0,89010.0,0.001]
[1765730564205,0.23592768,89011.0,89007.0,0.01123507]
[1765730564606,0.01123469,89010.0,89008.0,0.001]
[1765730565006,0.01123481,89009.0,89005.0,0.01123532]
[1765730565753,0.01123456,89011.0,89008.0,0.01123494]
[1765730566030,0.002,89010.0,89008.0,0.01123494]
[1765730566251,0.002,89010.0,89009.0,0.22469637]
[1765730567651,0.002,89010.0,89009.0,0.22569637]
[1765730568654,0.002,89010.0,89009.0,0.001]
[1765730568856,0.004,89010.0,89009.0,0.001]
[1765730569649,0.116,89010.0,89009.0,0.001]
[1765730571802,0.004,89010.0,89009.0,0.001]
[1765730572257,0.04264,89010.0,89009.0,0.001]
[1765730573168,0.15464,89010.0,89009.0,0.001]
[1765730574838,0.15264,89010.0,89009.0,0.001]
[1765730575043,0.15664,89010.0,89009.0,0.002]
[1765730575656,0.15464,89010.0,89009.0,0.001]
[1765730575864,0.15864,89010.0,89009.0,0.002]
[1765730576802,0.04664,89010.0,89009.0,0.002]
[1765730577056,0.15864,89010.0,89009.0,0.002]
[1765730577456,0.04664,89010.0,89009.0,0.002]
[1765730577908,0.06436,89010.0,89009.0,0.002]
[1765730580372,0.008,89010.0,89009.0,0.002]
[1765730581247,0.004,89010.0,89009.0,0.001]
[1765730581685,0.006,89010.0,89009.0,0.001]
[1765730582229,0.002,89010.0,89008.0,0.22469644]
[1765730582515,0.004,89010.0,89009.0,0.001]
[1765730583395,0.002,89010.0,89009.0,0.001]
[1765730583596,0.004,89010.0,89009.0,0.001]
[1765730584315,0.002,89010.0,89009.0,0.001]
[1765730584522,0.005,89010.0,89009.0,0.001]
[1765730591288,0.005,89010.0,89009.0,0.01872]
[1765730591562,0.005,89010.0,89009.0,0.13072]
[1765730591779,0.005,89010.0,89009.0,0.14760655]
[1765730592187,0.00114865,89010.0,89009.0,0.95225155]
[1765730592365,0.00114865,89010.0,89009.0,0.934365]
[1765730592776,0.00214865,89010.0,89009.0,0.937365]
[1765730592937,5.609e-05,89021.0,89020.0,0.112]
[1765730593342,5.609e-05,89021.0,89020.0,0.12972]
[1765730594233,0.01123002,89047.0,89020.0,0.12972]
[1765730594234,0.01123015,89046.0,89042.0,0.01123065]
[1765730594460,0.00038633,89046.0,89043.0,0.01123052]
[1765730594982,0.01161648,89046.0,89043.0,0.01123052]
[1765730595187,0.01123027,89045.0,89041.0,0.01123078]
[1765730595409,0.01123027,89045.0,89042.0,0.01123065]
[1765730595859,0.00438633,89046.0,89043.0,0.23683987]
[1765730596006,0.00038633,89046.0,89043.0,0.23583987]
[1765730596210,0.00038633,89046.0,89045.0,0.22460553]
[1765730596410,0.00238633,89046.0,89043.0,0.23583987]
[1765730596835,0.00038633,89046.0,89043.0,0.23583987]
[1765730597255,0.00238633,89046.0,89043.0,0.23583987]
[1765730597458,0.00238633,89046.0,89044.0,0.22460583]
[1765730597757,0.00038633,89046.0,89043.0,0.23583987]
[1765730597972,0.01722935,89046.0,89043.0,0.001]
[1765730598263,0.0112304,89044.0,89038.0,0.23585219]
[1765730598425,0.01123052,89043.0,89039.0,0.01123103]
[1765730598622,0.01123065,89042.0,89038.0,0.01123115]
[1765730598939,0.01123065,89042.0,89036.0,0.23585959]
[1765730599189,0.0112309,89040.0,89036.0,0.23585959]
[1765730599378,0.01123078,89041.0,89037.0,0.01123128]
[1765730599743,0.01123078,89041.0,89038.0,0.001]
[1765730600325,0.23584865,89041.0,89038.0,0.001]
[1765730600710,0.22462067,89039.0,89038.0,0.001]
[1765730601139,0.01123128,89037.0,89034.0,0.01123166]
[1765730601416,0.0353609,89040.0,89037.0,0.01123128]
[1765730601680,0.01123078,89041.0,89038.0,0.01123115]
[1765730602078,0.001,89039.0,89038.0,0.01223115]
[1765730602304,0.23584164,89043.0,89038.0,0.01123115]
[1765730602645,0.002,89040.0,89038.0,0.01123115]
[1765730602833,0.23584164,89043.0,89038.0,0.01123115]
[1765730603633,0.01323065,89042.0,89038.0,0.01123115]
[1765730604248,0.002,89039.0,89038.0,0.001]
[1765730604655,0.0112309,89040.0,89037.0,0.01123128]
[1765730604862,0.01123103,89039.0,89038.0,0.001]
[1765730605284,0.01123103,89039.0,89036.0,0.01123141]
[1765730605425,0.01323103,89039.0,89038.0,0.001]
[1765730605628,0.01523103,89039.0,89038.0,0.001]
[1765730606699,0.004,89039.0,89038.0,0.001]
[1765730608203,0.0311,89039.0,89038.0,0.001]
[1765730608408,0.0311,89039.0,89034.0,0.23586329]
[1765730608409,0.0311,89039.0,89000.0,0.01123595]
[1765730608410,0.23593708,89007.0,89000.0,0.01123595]
[1765730608614,0.2907,89024.0,88988.0,0.01123747]
[1765730608615,0.01123683,88993.0,88988.0,0.01123747]
[1765730608813,0.0271,89001.0,88985.0,0.01123784]
[1765730608814,0.01123671,88994.0,88985.0,0.01123784]
[1765730609169,0.01123671,88994.0,88983.0,0.0112381]
[1765730609170,0.22473425,88994.0,88990.0,0.01123721]
[1765730609374,0.01123683,88993.0,88986.0,0.23599217]
[1765730609523,0.01123683,88993.0,88988.0,0.22474855]
[1765730609925,0.01123683,88993.0,88990.0,0.01123721]
[1765730611311,0.01223683,88993.0,88990.0,0.01223721]
[1765730611532,0.01223683,88993.0,88990.0,0.001]
[1765730613281,0.01223683,88993.0,88990.0,0.01223721]
[1765730613464,0.01223683,88993.0,88990.0,0.23698149]
[1765730614376,0.001,88993.0,88990.0,0.23698149]
[1765730615419,0.001,88993.0,88986.0,5.609e-05]
[1765730615420,0.34071839,88990.0,88986.0,5.609e-05]
[1765730615574,0.4156656,88991.0,88956.0,9e-05]
[1765730615575,0.22479992,88968.0,88956.0,9e-05]
[1765730615785,0.22479992,88968.0,88967.0,0.00033517]
[1765730615786,0.36551279,88968.0,88967.0,0.00033517]
[1765730615990,0.38907279,88968.0,88967.0,0.00033517]
[1765730616833,0.38907279,88968.0,88967.0,0.00133517]
[1765730617039,0.39107279,88968.0,88967.0,0.00133517]
[1765730618299,0.39307279,88968.0,88967.0,0.00133517]
[1765730620813,0.36951279,88968.0,88967.0,0.00133517]
[1765730621320,0.39307279,88968.0,88967.0,0.10133517]
[1765730622591,0.39301714,88968.0,88967.0,0.10133517]
[1765730623405,0.25751279,88968.0,88967.0,0.10133517]
[1765730623618,0.22879992,88968.0,88967.0,0.10133517]
[1765730624643,0.37999992,88968.0,88967.0,0.10133517]
[1765730625681,0.26799992,88968.0,88967.0,0.10133517]
[1765730627416,0.26961279,88968.0,88967.0,0.10133517]
[1765730629640,0.38161279,88968.0,88967.0,0.10133517]
[1765730630619,0.37961279,88968.0,88967.0,0.10133517]
[1765730630841,0.26561279,88968.0,88967.0,0.10033517]
[1765730631050,9.94461279,88968.0,88967.0,0.10133517]
[1765730632785,10.28533118,88968.0,88967.0,0.10133517]
[1765730637158,10.30309118,88968.0,88967.0,0.10133517]
[1765730638349,10.28533118,88968.0,88967.0,0.10133517]
[1765730638709,10.19109118,88968.0,88967.0,0.10133517]
[1765730638913,9.96237279,88968.0,88967.0,0.10133517]
[1765730639115,10.25307279,88968.0,88967.0,0.10133517]
[1765730639478,10.30309118,88968.0,88967.0,0.10133517]
[1765730640580,10.19109118,88968.0,88967.0,0.10133517]
[1765730640761,10.25307279,88968.0,88967.0,0.10133517]
[1765730643167,10.23531279,88968.0,88967.0,0.10133517]
[1765730643428,10.25307279,88968.0,88967.0,0.10133517]
[1765730645513,10.28773421,88968.0,88967.0,0.10133517]
[1765730646652,9.80905279,88968.0,88967.0,0.10133517]
[1765730646773,9.83198279,88968.0,88967.0,0.10133517]
[1765730649989,9.94398279,88968.0,88967.0,0.10133517]
[1765730651150,10.28470118,88968.0,88967.0,0.10133517]
[1765730651345,10.28470118,88968.0,88967.0,0.07633517]
[1765730651346,10.3193631,88968.0,88967.0,0.07633517]
[1765730651976,10.3193631,88968.0,88956.0,9e-05]
[1765730651977,0.67754611,88957.0,88956.0,9e-05]
[1765730652154,0.71169611,88957.0,88956.0,0.00020558]
[1765730652524,0.73462611,88957.0,88956.0,0.00020558]
[1765730652850,0.74511577,88957.0,88956.0,0.00020558]
[1765730653049,0.77128299,88957.0,88956.0,0.00020558]
[1765730653253,0.77328299,88957.0,88956.0,0.00020558]
[1765730653891,0.7732817,88957.0,88956.0,0.00020558]
[1765730654559,0.77328156,88957.0,88956.0,0.00020558]
[1765730654759,0.73862611,88957.0,88956.0,0.00020558]
[1765730655445,0.77328252,88957.0,88956.0,0.00020558]
[1765730656579,0.76279336,88957.0,88956.0,0.00020558]
[1765730657785,0.76279336,88957.0,88956.0,0.00054121]
[1765730657986,0.76279336,88957.0,88937.0,0.0002]
[1765730657987,0.67757392,88946.0,88937.0,0.0002]
[1765730658195,0.75644044,88946.0,88945.0,0.05498153]
[1765730658406,0.77937044,88946.0,88945.0,0.05498153]
[1765730659464,0.78237044,88946.0,88945.0,0.05498153]
[1765730659863,0.78437044,88946.0,88945.0,0.05498153]
[1765730660437,0.65461044,88946.0,88945.0,0.05498153]
[1765730660619,0.66188117,88946.0,88945.0,0.05498153]
[1765730660823,0.78435999,88946.0,88945.0,0.05498153]
[1765730661488,0.77388117,88946.0,88945.0,0.05498153]
[1765730662353,0.75612117,88946.0,88945.0,0.05498153]
[1765730662534,0.77388117,88946.0,88945.0,0.05498153]
[1765730663139,0.77388117,88946.0,88931.0,0.0002]
[1765730663140,0.22489092,88932.0,88930.0,0.01551238]
[1765730663363,0.14055,88931.0,88930.0,0.01589748]
[1765730663712,0.05148,88931.0,88930.0,0.01589748]
[1765730664025,0.05148,88931.0,88930.0,0.01669105]
[1765730664225,0.16348,88931.0,88930.0,0.01669105]
[1765730664882,0.16348,88931.0,88930.0,0.01769105]
[1765730665243,0.16748,88931.0,88930.0,0.01769105]
[1765730665437,0.16748,88931.0,88930.0,0.01669105]
[1765730665438,0.22889345,88931.0,88930.0,0.01669105]
[1765730665736,0.23089345,88931.0,88930.0,0.01769105]
[1765730665997,0.006,88931.0,88930.0,0.01769105]
[1765730666199,0.24700345,88931.0,88930.0,0.01769105]
[1765730666376,0.24700345,88931.0,88925.0,0.0002]
[1765730666377,0.67762449,88926.0,88925.0,0.0002]
[1765730666587,0.56191215,88926.0,88925.0,0.0002]
[1765730666753,0.69874502,88926.0,88925.0,0.0002]
[1765730668699,0.70574502,88926.0,88925.0,0.0012]
[1765730669208,0.75576341,88926.0,88925.0,0.0012]
[1765730671528,0.75576341,88926.0,88900.0,0.010787]
[1765730671530,0.01124745,88909.0,88900.0,0.010787]
[1765730671717,0.01124745,88909.0,88891.0,0.07948781]
[1765730671718,0.02816,88917.0,88870.0,0.0005]
[1765730671720,0.51573009,88877.0,88870.0,0.0005]
[1765730671947,0.69554848,88877.0,88870.0,0.0005]
[1765730672106,0.67774848,88877.0,88870.0,0.0005]
[1765730672265,0.69554848,88877.0,88876.0,0.08225876]
[1765730672707,0.67774848,88877.0,88876.0,0.08225876]
[1765730672954,0.69593405,88877.0,88876.0,0.08225876]
[1765730673133,0.69993405,88877.0,88876.0,1e-08]
[1765730673404,0.69993405,88877.0,88854.0,0.08272001]
[1765730673405,0.05001839,88856.0,88854.0,0.08272001]
[1765730673567,0.05001839,88856.0,88819.0,0.01125885]
[1765730673569,0.67784981,88837.0,88807.0,0.02363037]
[1765730673780,0.69568981,88837.0,88808.0,0.02252049]
[1765730673969,0.69568981,88837.0,88836.0,0.00152272]
[1765730673970,0.58368981,88837.0,88836.0,0.00152272]
[1765730674175,0.58368981,88837.0,88808.0,0.02252049]
[1765730674176,0.51583902,88834.0,88833.0,0.07721425]
[1765730674556,0.24297902,88834.0,88833.0,0.07721425]
[1765730674759,0.24336436,88834.0,88833.0,0.07721425]
[1765730674964,0.35536436,88834.0,88833.0,0.07721425]
[1765730675169,0.00043534,88834.0,88833.0,0.07721425]
[1765730675471,0.00043534,88834.0,88833.0,0.07921425]
[1765730675472,0.3448166,88834.0,88833.0,0.07921425]
[1765730675735,0.4568166,88834.0,88833.0,0.07921425]
[1765730677106,0.4558166,88834.0,88833.0,0.07721425]
[1765730677432,0.4568166,88834.0,88833.0,0.07821425]
[1765730677633,0.4568166,88834.0,88833.0,0.07321425]
[1765730677835,0.4588166,88834.0,88833.0,0.07221425]
[1765730678045,0.4548166,88834.0,88833.0,0.07221425]
[1765730678194,0.4558166,88834.0,88833.0,0.07221425]
[1765730678362,0.00438534,88834.0,88833.0,0.07221425]
[1765730678568,0.33852436,88834.0,88833.0,0.07221425]
[1765730678837,0.33752436,88834.0,88833.0,0.07221425]
[1765730679034,0.39115562,88834.0,88833.0,0.07421425]
[1765730679267,0.68185562,88834.0,88833.0,0.00200425]
[1765730679439,0.22522065,88802.0,88800.0,0.0028]
[1765730680249,0.112,88801.0,88800.0,0.0028]
[1765730680452,0.16201839,88801.0,88800.0,0.0028]
[1765730680658,0.16240349,88801.0,88800.0,0.00390115]
[1765730681531,0.16240349,88801.0,88800.0,0.00490115]
[1765730681532,0.16440349,88801.0,88800.0,0.00490115]
[1765730681847,0.16440349,88801.0,88800.0,0.00486115]
[1765730682224,0.0023851,88801.0,88800.0,0.00486115]
[1765730682504,0.0023851,88801.0,88800.0,0.04581115]
[1765730683271,0.0023851,88801.0,88800.0,0.06270178]
[1765730683630,0.0023851,88801.0,88800.0,0.06369115]
[1765730683916,0.0023851,88801.0,88800.0,0.17569115]
[1765730684115,0.0023851,88801.0,88800.0,0.17469115]
[1765730684314,0.0003851,88801.0,88800.0,0.17469115]
[1765730684528,0.0013851,88801.0,88800.0,0.17769115]
[1765730684755,0.0013851,88801.0,88800.0,1.34944667]
[1765730684756,0.0009951,88801.0,88800.0,1.34944667]
[1765730684925,0.112,88827.0,88823.0,0.01125834]
[1765730685126,0.01125758,88829.0,88823.0,0.01125834]
[1765730685127,0.12325758,88829.0,88826.0,0.01125796]
[1765730685330,0.112,88838.0,88834.0,0.01125695]
[1765730685536,0.112,88838.0,88827.0,0.02447]
[1765730685537,0.01125669,88836.0,88832.0,0.0112572]
[1765730685708,0.01125669,88836.0,88833.0,0.02447]
[1765730685939,0.01125657,88837.0,88835.0,0.01648]
[1765730686187,0.34837801,88842.0,88833.0,0.03572707]
[1765730686188,0.01788,88852.0,88850.0,0.01125492]
[1765730686189,0.112,88852.0,88850.0,0.01125492]
[1765730686392,0.112,88852.0,88836.0,0.01648]
[1765730686393,0.23632417,88861.0,88856.0,0.01125416]
[1765730686582,0.112,88862.0,88856.0,0.01125416]
[1765730686583,0.1232534,88862.0,88858.0,0.01125391]
[1765730686727,0.2907,88861.0,88858.0,0.01125391]
[1765730686924,0.01125315,88864.0,88858.0,0.01125391]
[1765730686925,0.01125315,88864.0,88861.0,0.01125353]
[1765730687149,0.33705652,88867.0,88861.0,0.01125353]
[1765730687150,0.01125264,88868.0,88864.0,0.01125315]
[1765730687365,0.112,88865.0,88864.0,0.00011566]
[1765730687569,0.33706418,88865.0,88864.0,0.00011566]
[1765730688003,0.38708257,88865.0,88864.0,0.00011566]
[1765730688733,0.38969544,88865.0,88864.0,0.00311566]
[1765730689767,0.38869544,88865.0,88864.0,0.00111566]
[1765730689906,0.38869544,88865.0,88864.0,0.00011566]
[1765730690107,0.39469544,88865.0,88864.0,0.00111566]
[1765730692072,0.68539544,88865.0,88864.0,0.00111566]
[1765730700628,0.68539544,88865.0,88800.0,0.00373092]
[1765730700629,0.22515169,88829.0,88818.0,0.02464]
[1765730700810,0.22515169,88829.0,88803.0,0.0125]
[1765730700811,0.3372672,88829.0,88824.0,0.01125821]
[1765730701014,0.00011551,88829.0,88828.0,0.24281885]
[1765730701554,0.00011551,88829.0,88828.0,0.04230462]
[1765730701990,0.01125619,88840.0,88828.0,0.04230462]
[1765730701991,0.01125429,88855.0,88850.0,0.01125492]
[1765730702194,0.2907,88866.0,88855.0,0.01125429]
[1765730702195,0.01125391,88858.0,88855.0,0.01125429]
[1765730702376,0.01125391,88858.0,88856.0,0.01125416]
[1765730702377,0.00011598,88858.0,88856.0,0.01125416]
[1765730702527,0.00011598,88858.0,88857.0,0.0125]
[1765730702939,0.00011598,88858.0,88857.0,0.27964074]
[1765730703715,0.00311598,88858.0,88857.0,0.28064074]
[1765730704253,0.00211598,88858.0,88857.0,0.28064074]
[1765730704658,0.00311598,88858.0,88857.0,0.28164074]
[1765730705294,0.04036568,88899.0,88857.0,0.28164074]
[1765730705295,0.01124884,88898.0,88890.0,0.01124985]
[1765730705451,0.01124922,88895.0,88890.0,0.23624697]
[1765730705663,0.01163554,88898.0,88890.0,0.23624697]
[1765730705664,0.0112491,88896.0,88893.0,0.01124947]
[1765730706137,0.23622844,88897.0,88893.0,0.01124947]
[1765730706138,0.01124897,88897.0,88895.0,0.02992]
[1765730706272,0.0003867,88898.0,88896.0,0.242402]
[1765730706502,0.0023867,88898.0,88897.0,0.01742]
[1765730706688,0.0023867,88898.0,88897.0,0.04206]
[1765730706886,0.0003867,88898.0,88897.0,0.04206]
[1765730707317,0.22491352,88924.0,88897.0,0.04206]
[1765730707318,0.0112453,88926.0,88920.0,0.01124606]
[1765730707534,0.00011595,88926.0,88925.0,0.02992]
[1765730707676,0.00011595,88926.0,88925.0,0.0125]
[1765730708080,0.00011595,88926.0,88925.0,0.05456]
[1765730708705,0.22485881,88945.0,88925.0,0.05456]
[1765730708706,0.01124302,88944.0,88940.0,0.01124353]
[1765730708907,0.01124302,88944.0,88935.0,0.22488103]
[1765730708908,0.01124492,88929.0,88926.0,0.02464]
[1765730709109,0.01124492,88929.0,88927.0,0.01788]
[1765730709110,0.01124505,88928.0,88927.0,0.01788]
[1765730709314,0.01124505,88928.0,88921.0,0.01124593]
[1765730709316,0.01124656,88916.0,88915.0,0.0125]
[1765730709514,0.01124631,88918.0,88915.0,0.02386264]
[1765730709708,0.01124555,88924.0,88920.0,0.01224606]
[1765730709929,0.01124555,88924.0,88918.0,0.24234518]
[1765730709930,0.01124568,88923.0,88918.0,0.01124631]
[1765730710132,0.0112453,88926.0,88923.0,0.02866568]
[1765730710463,0.01124505,88928.0,88921.0,0.01124593]
[1765730710464,0.002,88928.0,88927.0,0.01842]
[1765730710666,0.22490055,88929.0,88927.0,0.01742]
[1765730710868,0.01124479,88930.0,88927.0,0.01742]
[1765730711172,0.22489851,88929.0,88927.0,0.01742]
[1765730711376,0.0112453,88926.0,88921.0,0.01124593]
[1765730711531,0.0122453,88926.0,88923.0,0.001]
[1765730711727,0.23615406,88925.0,88923.0,0.001]
[1765730711929,0.112,88924.0,88923.0,0.001]
[1765730712736,0.01124631,88918.0,88915.0,0.00011595]
[1765730713256,0.01124631,88918.0,88909.0,0.2249482]
[1765730713260,0.01124631,88918.0,88880.0,0.00097092]
[1765730713261,0.11257015,88916.0,88880.0,0.00097092]
[1765730713455,0.11257015,88916.0,88859.0,0.0125]
[1765730713456,0.11257015,88916.0,88862.0,0.0125]
[1765730713457,0.23631358,88865.0,88862.0,0.0125]
[1765730713618,0.23631358,88865.0,88841.0,0.0125]
[1765730713619,0.22507061,88861.0,88853.0,0.0125]
[1765730713997,0.01125416,88856.0,88853.0,0.0125]
[1765730714114,0.01125403,88857.0,88853.0,0.0125]
[1765730714320,0.22508581,88855.0,88853.0,0.03714]
[1765730714513,0.01125416,88856.0,88853.0,0.03714]
[1765730714782,0.01125327,88863.0,88855.0,0.02867429]
[1765730715021,0.01125302,88865.0,88862.0,0.0112534]
[1765730715242,0.01125378,88859.0,88856.0,0.01742]
[1765730715459,0.01125378,88859.0,88856.0,0.01125416]
[1765730715700,0.01125378,88859.0,88858.0,0.01742]
[1765730716023,0.01125378,88859.0,88858.0,0.04206]
[1765730716262,0.01125378,88859.0,88858.0,0.0353]
[1765730716482,0.01125378,88859.0,88854.0,0.01792]
[1765730716483,0.01125416,88856.0,88854.0,0.01792]
[1765730716836,0.23633788,88856.0,88854.0,0.01792]
[1765730717142,0.002,88859.0,88858.0,0.001]
[1765730717368,0.003,88859.0,88858.0,0.01842]
[1765730717564,0.01125403,88857.0,88854.0,0.01792]
[1765730717978,0.22608328,88856.0,88854.0,0.01892]
[1765730718664,0.001,88856.0,88854.0,0.01892]
[1765730718872,0.22608514,88856.0,88854.0,0.002]
[1765730719104,0.112,88855.0,88854.0,0.002]
[1765730719806,0.112,88855.0,88854.0,0.001]
[1765730720015,0.33708834,88854.0,88853.0,0.0003867]
[1765730721017,0.2363393,88856.0,88853.0,0.0003867]
[1765730721218,0.01125391,88858.0,88855.0,0.01742]
[1765730721439,0.22507568,88859.0,88854.0,0.03589441]
[1765730721440,0.01125378,88859.0,88854.0,0.03589441]
[1765730721675,0.01125378,88859.0,88858.0,0.01742]
[1765730722052,0.01125391,88858.0,88855.0,0.02464]
[1765730722480,0.01125391,88858.0,88853.0,0.01264124]
[1765730722481,0.22508834,88854.0,88853.0,0.0013867]
[1765730722828,0.22508834,88854.0,88853.0,0.0003867]
[1765730723029,0.112,88855.0,88853.0,0.0003867]
[1765730723214,0.22508581,88855.0,88853.0,0.0003867]
[1765730723619,0.12325378,88859.0,88853.0,0.0003867]
[1765730723620,0.01125251,88869.0,88862.0,0.0112534]
[1765730723831,0.01125251,88869.0,88865.0,0.0125]
[1765730723832,0.22505795,88866.0,88865.0,0.0125]
[1765730724490,0.01125277,88867.0,88858.0,0.01792]
[1765730724491,0.22507545,88860.0,88858.0,0.01792]
[1765730725360,0.22608834,88854.0,88853.0,0.0003867]
[1765730725844,0.0112534,88862.0,88854.0,0.01125441]
[1765730726181,0.23633054,88859.0,88858.0,0.001]
[1765730726658,0.01125416,88856.0,88853.0,0.0250267]
[1765730726857,0.0112534,88862.0,88853.0,0.0250267]
[1765730726858,0.01125327,88863.0,88859.0,0.01125378]
[1765730727033,0.001,88862.0,88860.0,0.25424652]
[1765730727210,0.001,88862.0,88860.0,0.28894652]
[1765730727415,0.001,88862.0,88861.0,0.03835]
[1765730728553,0.002,88863.0,88862.0,0.22506808]
[1765730728755,0.002,88863.0,88862.0,0.26341808]
[1765730729325,0.01125201,88873.0,88870.0,0.01125239]
[1765730729597,0.01125201,88873.0,88872.0,0.01528]
[1765730729737,0.01125188,88874.0,88872.0,0.01528]
[1765730730095,0.01125163,88876.0,88873.0,0.03835]
[1765730730302,0.12486386,88881.0,88876.0,0.01125163]
[1765730730551,0.12486386,88881.0,88874.0,0.01125188]
[1765730730552,0.01125011,88888.0,88885.0,0.01125049]
[1765730730751,0.23624951,88890.0,88886.0,0.01125036]
[1765730730752,0.01124998,88889.0,88886.0,0.01125036]
[1765730730903,0.01124998,88889.0,88886.0,0.03432036]
[1765730730904,0.2362499,88889.0,88886.0,0.03432036]
[1765730731109,0.01124985,88890.0,88889.0,0.01528]
[1765730731270,0.0112491,88896.0,88892.0,0.2249914]
[1765730731469,0.22497915,88898.0,88895.0,0.02691]
[1765730731470,0.23622799,88898.0,88895.0,0.02691]
[1765730731674,0.00011574,88898.0,88897.0,0.01528]
[1765730731881,0.22509267,88898.0,88897.0,0.03835]
[1765730732934,0.22809267,88898.0,88897.0,0.03935]
[1765730733137,0.00511574,88898.0,88897.0,0.04035]
[1765730733551,0.00211574,88898.0,88897.0,0.03935]
[1765730734772,0.22809267,88898.0,88897.0,0.03935]
[1765730735259,0.22809267,88898.0,88897.0,0.001]
[1765730735475,0.70030393,88898.0,88897.0,0.001]
[1765730736170,0.70030393,88898.0,88864.0,0.02288315]
[1765730736171,0.22506044,88866.0,88864.0,0.01163]
[1765730736586,0.23631004,88867.0,88865.0,0.03835]
[1765730736803,0.23631004,88867.0,88866.0,0.01528]
[1765730736983,0.01125277,88867.0,88866.0,0.03835]
[1765730737179,0.01125251,88869.0,88866.0,0.03835]
[1765730737382,0.01125201,88873.0,88867.0,0.22505541]
[1765730737635,0.22503754,88875.0,88873.0,0.01528]
[1765730737809,0.01125201,88873.0,88869.0,0.01125251]
[1765730738108,0.23629251,88873.0,88869.0,0.01125251]
[1765730738265,0.01125213,88872.0,88870.0,0.02307]
[1765730738657,0.01125213,88872.0,88871.0,0.01528]
[1765730739077,0.01125213,88872.0,88871.0,0.03835]
[1765730739739,0.01125213,88872.0,88868.0,0.01125264]
[1765730739927,0.22505541,88867.0,88866.0,0.0003867]
[1765730740404,0.01125251,88869.0,88866.0,0.0003867]
[1765730740668,0.01125226,88871.0,88866.0,0.01163959]
[1765730741100,0.01325213,88872.0,88868.0,0.23730465]
[1765730741281,0.01425213,88872.0,88868.0,0.23730465]
[1765730741487,0.01425213,88872.0,88869.0,0.02307]
[1765730741618,0.01425213,88872.0,88869.0,0.02303]